bitfinex/quotes_SOLUSD_20250317
["timestamp","ask_amount","ask_price","bid_price","bid_amount"]
[1742233209449,106.48724998,128.09,128.04,27.3351]
[1742233209856,106.48724998,128.09,128.04,77.56149229]
[1742233210076,106.48724998,128.09,128.05,50.22639229]
[1742233210253,106.48724998,128.09,128.07,7.8082]
[1742233211870,106.55024998,128.09,128.07,7.8082]
[1742233212051,106.55024998,128.09,128.07,58.03459229]
[1742233212255,106.55024998,128.09,128.06,27.3307]
[1742233212453,106.55024998,128.09,128.07,50.22639229]
[1742233213377,106.55024998,128.09,128.07,50.13326657]
[1742233214280,106.55024998,128.09,128.06,77.46396657]
[1742233214460,106.55024998,128.09,128.07,33.42327113]
[1742233215777,106.55024998,128.09,128.08,33.42327113]
[1742233215976,65.41104998,128.09,128.08,33.42327113]
[1742233216279,65.41104998,128.09,128.06,33.42327113]
[1742233218080,65.41104998,128.09,128.07,33.42327113]
[1742233219182,65.41104998,128.09,128.07,7.8082]
[1742233219885,65.41104998,128.09,128.07,6.9962]
[1742233222585,4.998e-05,128.09,128.08,33.42327113]
[1742233222976,4.998e-05,128.09,128.07,6.9962]
[1742233223180,4.998e-05,128.09,128.08,33.42327113]
[1742233224474,4.998e-05,128.09,128.08,41.23087113]
[1742233225584,4.998e-05,128.09,128.08,353.23087113]
[1742233226275,4.998e-05,128.09,128.08,41.23087113]
[1742233227175,4.998e-05,128.09,128.08,7.8076]
[1742233228984,4.998e-05,128.09,128.08,20.0]
[1742233229799,4.998e-05,128.09,128.08,38.933972]
[1742233230873,4.998e-05,128.09,128.08,46.741572]
[1742233231071,4.998e-05,128.09,128.08,27.8076]
[1742233231387,4.998e-05,128.09,128.08,41.23087113]
[1742233231769,4.998e-05,128.09,128.08,7.8076]
[1742233233082,4.998e-05,128.09,128.07,7.8082]
[1742233235292,4.998e-05,128.09,128.08,18.933972]
[1742233235985,4.998e-05,128.09,128.08,18.963972]
[1742233236291,0.0001,128.15,128.14,33.42327113]
[1742233236670,0.0001,128.15,128.11,20.0]
[1742233237186,0.0001,128.15,128.12,27.318]
[1742233237981,0.0001,128.15,128.14,33.42327113]
[1742233238383,0.0001,128.15,128.14,41.22717113]
[1742233239176,0.0001,128.15,128.14,7.8039]
[1742233240372,0.0001,128.15,128.14,11.64157299]
[1742233241903,18.10142887,128.17,128.14,17.90967299]
[1742233242079,2.887e-05,128.17,128.16,33.42327113]
[1742233243099,2.887e-05,128.17,128.16,41.22597113]
[1742233244000,2.887e-05,128.17,128.16,7.8027]
[1742233244200,2.887e-05,128.17,128.16,41.22597113]
[1742233247506,2.887e-05,128.17,128.16,7.8027]
[1742233248688,0.06302887,128.17,128.16,7.8027]
[1742233249092,2.887e-05,128.17,128.16,41.22597113]
[1742233250196,2.887e-05,128.17,128.16,7.8027]
[1742233250706,2.887e-05,128.17,128.16,41.22597113]
[1742233251007,2.887e-05,128.17,128.16,7.8027]
[1742233251389,2.887e-05,128.17,128.16,41.22597113]
[1742233251799,2.887e-05,128.17,128.16,7.8027]
[1742233252696,2.887e-05,128.17,128.15,7.8031]
[1742233253807,2.887e-05,128.17,128.15,28.66654482]
[1742233254191,2.887e-05,128.17,128.15,7.8031]
[1742233254599,2.887e-05,128.17,128.14,48.17724482]
[1742233255011,2.887e-05,128.17,128.15,20.86344482]
[1742233257031,2.887e-05,128.17,128.16,28.66614482]
[1742233257312,2.887e-05,128.17,128.16,28.65514968]
[1742233257897,2.887e-05,128.17,128.16,41.17277392]
[1742233258230,2.887e-05,128.17,128.16,7.8027]
[1742233258399,2.887e-05,128.17,128.16,41.17277392]
[1742233258608,2.887e-05,128.17,128.16,60.10674592]
[1742233261117,2.887e-05,128.22,128.19,20.0]
[1742233261320,2.887e-05,128.22,128.21,33.37007392]
[1742233262919,33.37010279,128.22,128.17,33.37007392]
[1742233263129,33.37010279,128.22,128.18,7.8015]
[1742233263833,2.887e-05,128.22,128.18,27.3053]
[1742233264020,2.887e-05,128.22,128.19,33.37007392]
[1742233264215,2.887e-05,128.22,128.18,60.67537392]
[1742233264427,33.37010279,128.22,128.18,27.3053]
[1742233264823,2.887e-05,128.22,128.18,60.67537392]
[1742233265226,2.887e-05,128.22,128.2,7.8003]
[1742233266143,33.37010279,128.22,128.2,7.8003]
[1742233267544,2.887e-05,128.22,128.18,27.3053]
[1742233269117,2.887e-05,128.22,128.18,60.67537392]
[1742233269737,33.37007392,128.2,128.18,7.8015]
[1742233269975,2.887e-05,128.22,128.18,7.8015]
[1742233270236,2.887e-05,128.22,128.18,27.3053]
[1742233270412,2.887e-05,128.22,128.18,60.67537392]
[1742233271337,2.887e-05,128.22,128.19,33.37007392]
[1742233271721,2.887e-05,128.22,128.2,7.8003]
[1742233272632,2.887e-05,128.22,128.2,41.17037392]
[1742233274325,2.887e-05,128.22,128.2,7.8003]
[1742233276225,2.887e-05,128.22,128.19,7.8009]
[1742233279135,33.3735551,128.21,128.18,0.03]
[1742233279352,0.28432314,128.19,128.18,0.03]
[1742233279555,33.65787824,128.19,128.18,0.03]
[1742233279861,21.15246685,128.19,128.18,0.03]
[1742233280351,0.28432314,128.19,128.18,0.03]
[1742233280655,9.04,128.2,128.18,0.03]
[1742233282022,21.15246685,128.19,128.18,0.03]
[1742233284123,9.04,128.2,128.18,0.03]
[1742233284337,20.86817258,128.22,128.18,0.03]
[1742233284743,8.94002887,128.22,128.18,20.89814371]
[1742233286023,2.887e-05,128.22,128.19,27.3032]
[1742233288144,2.887e-05,128.22,128.19,40.37044371]
[1742233288938,2.887e-05,128.22,128.19,19.5023]
[1742233289724,21.29462842,128.2,128.18,0.03]
[1742233289936,70.9169781,128.19,128.18,0.03]
[1742233290827,50.03246685,128.19,128.18,0.03]
[1742233291227,49.03246685,128.19,128.18,0.03]
[1742233292530,8.88,128.19,128.18,0.03]
[1742233293853,20.86817258,128.22,128.18,0.03]
[1742233293854,2.887e-05,128.22,128.21,20.0]
[1742233294053,2.887e-05,128.22,128.21,40.86814371]
[1742233294254,2.887e-05,128.22,128.21,48.66784371]
[1742233295746,2.887e-05,128.22,128.21,67.60181571]
[1742233296055,2.887e-05,128.22,128.21,76.44181571]
[1742233296830,2.887e-05,128.22,128.21,388.44181571]
[1742233297056,2.887e-05,128.22,128.21,367.573672]
[1742233297242,2.887e-05,128.22,128.21,369.50784371]
[1742233297465,2.887e-05,128.22,128.21,375.25602596]
[1742233297656,2.887e-05,128.22,128.21,42.38788225]
[1742233297958,2.887e-05,128.22,128.21,22.38788225]
[1742233298256,2.887e-05,128.22,128.21,13.54788225]
[1742233298636,2.887e-05,128.22,128.21,34.41602596]
[1742233304145,2.887e-05,128.22,128.21,43.09602596]
[1742233306163,2.887e-05,128.22,128.21,34.41602596]
[1742233310162,2.887e-05,128.22,128.21,53.34999796]
[1742233313271,2.887e-05,128.22,128.21,365.34999796]
[1742233313954,2.887e-05,128.22,128.21,346.41602596]
[1742233314159,2.887e-05,128.22,128.21,34.41602596]
[1742233315375,2.887e-05,128.22,128.21,53.34999796]
[1742233315976,2.887e-05,128.22,128.21,34.41602596]
[1742233317277,2.887e-05,128.22,128.21,346.41602596]
[1742233319278,2.887e-05,128.22,128.21,365.34999796]
[1742233320193,2.887e-05,128.22,128.21,53.34999796]
[1742233321555,2.887e-05,128.22,128.21,53.6343211]
[1742233321765,2.887e-05,128.26,128.24,20.0]
[1742233321962,2.887e-05,128.26,128.25,20.86814371]
[1742233323086,2.887e-05,128.26,128.25,26.61632596]
[1742233324289,2.887e-05,128.26,128.25,34.41352596]
[1742233326392,2.887e-05,128.26,128.25,346.41352596]
[1742233327184,2.887e-05,128.26,128.25,365.34749796]
[1742233327367,18.3463,128.32,128.26,18.933972]
[1742233327567,18.3463,128.32,128.29,20.86814371]
[1742233327967,18.3463,128.32,128.3,7.7942]
[1742233328475,18.3463,128.32,128.3,13.54238225]
[1742233329174,18.3463,128.32,128.3,34.41052596]
[1742233329378,18.3463,128.32,128.31,20.86814371]
[1742233329979,18.3463,128.32,128.31,7.7936]
[1742233330181,18.3463,128.32,128.31,13.54178225]
[1742233330573,0.0001,128.32,128.31,34.40992596]
[1742233330973,0.0001,128.32,128.31,53.6282211]
[1742233332373,0.0001,128.32,128.31,57.54075525]
[1742233332583,0.0001,128.32,128.31,36.67261154]
[1742233333888,0.0001,128.32,128.31,348.67261154]
[1742233334890,0.0001,128.35,128.34,40.86814371]
[1742233335788,0.0001,128.35,128.34,20.86814371]
[1742233335988,0.0001,128.35,128.34,40.86814371]
[1742233336188,0.0001,128.35,128.34,46.61632596]
[1742233336498,0.0001,128.35,128.34,54.40812596]
[1742233337889,0.063,128.39,128.35,0.28432314]
[1742233338198,0.063,128.39,128.38,20.86814371]
[1742233338374,0.063,128.39,128.38,28.65744371]
[1742233338571,27.37904371,128.44,128.38,28.65744371]
[1742233338779,20.86814371,128.43,128.38,27.2627]
[1742233338992,20.86814371,128.41,128.38,7.7893]
[1742233339386,20.86814371,128.4,128.36,7.7905]
[1742233341095,20.86814371,128.41,128.36,28.65864371]
[1742233341396,20.86814371,128.42,128.37,20.86814371]
[1742233341776,21.15246685,128.43,128.37,20.86814371]
[1742233342589,21.15246685,128.43,128.38,7.7893]
[1742233342892,14.6109,128.44,128.39,20.86814371]
[1742233343097,35.47904371,128.44,128.39,20.86814371]
[1742233344290,20.0,128.44,128.4,20.86814371]
[1742233344592,8.08,128.46,128.42,7.7869]
[1742233344781,27.46864371,128.47,128.42,28.65504371]
[1742233344980,27.46864371,128.47,128.42,48.12234371]
[1742233345178,6.6005,128.47,128.42,48.12234371]
[1742233345391,27.46864371,128.47,128.42,48.12234371]
[1742233345583,20.86814371,128.46,128.42,27.2542]
[1742233346778,35.52864371,128.47,128.42,48.12234371]
[1742233346974,35.50864371,128.47,128.42,48.12234371]
[1742233347187,20.86814371,128.46,128.42,27.2542]
[1742233348281,35.50864371,128.47,128.42,48.12234371]
[1742233351577,20.86814371,128.46,128.42,27.2542]
[1742233351888,20.86814371,128.45,128.42,27.2542]
[1742233352786,14.6405,128.47,128.42,27.2542]
[1742233353096,20.86814371,128.46,128.42,27.2542]
[1742233357398,35.50864371,128.47,128.42,27.2542]
[1742233357709,20.93114371,128.46,128.42,27.2542]
[1742233358097,0.063,128.46,128.42,27.2542]
[1742233358809,0.063,128.46,128.42,48.12234371]
[1742233359103,0.063,128.46,128.43,20.86814371]
[1742233359307,0.063,128.46,128.42,48.12234371]
[1742233359903,0.063,128.46,128.45,20.86814371]
[1742233360411,0.0001,128.46,128.45,20.86814371]
[1742233361105,0.0001,128.46,128.45,48.5446189]
[1742233362804,20.7595189,128.52,128.45,112.58668802]
[1742233363012,20.7595189,128.52,128.47,20.7595189]
[1742233364191,20.7595189,128.54,128.48,20.7595189]
[1742233364388,7.84,128.55,128.49,20.7595189]
[1742233364592,20.7595189,128.54,128.49,20.7595189]
[1742233365000,20.7595189,128.54,128.5,7.7821]
[1742233365191,20.7595189,128.53,128.5,7.7821]
[1742233365417,20.7595189,128.53,128.5,27.2373]
[1742233365713,20.7595189,128.54,128.5,27.2373]
[1742233366008,20.7595189,128.55,128.5,27.2373]
[1742233367100,20.7595189,128.55,128.5,47.9968189]
[1742233367600,20.7595189,128.56,128.5,47.9968189]
[1742233367787,20.7595189,128.56,128.51,20.7595189]
[1742233368203,20.7595189,128.56,128.5,47.9968189]
[1742233368407,20.7595189,128.55,128.5,47.9968189]
[1742233368709,20.7595189,128.54,128.5,7.7821]
[1742233369011,8.06292314,128.56,128.5,7.7821]
[1742233369209,20.7595189,128.53,128.5,7.7821]
[1742233369422,20.7595189,128.53,128.45,27.2469]
[1742233369423,21.04384204,128.52,128.45,27.2469]
[1742233369612,20.7595189,128.49,128.45,7.7851]
[1742233370110,7.78,128.5,128.45,7.7851]
[1742233370315,20.7595189,128.47,128.44,7.7855]
[1742233370816,20.7595189,128.48,128.44,7.7855]
[1742233371017,20.7595189,128.47,128.44,7.7855]
[1742233371392,20.2595189,128.47,128.42,7.7864]
[1742233371605,20.7595189,128.45,128.42,7.7864]
[1742233372035,7.78,128.46,128.42,27.2537]
[1742233372319,28.5195189,128.5,128.45,20.7595189]
[1742233372805,28.5195189,128.5,128.44,20.7595189]
[1742233373004,20.7595189,128.49,128.44,20.7595189]
[1742233373308,20.7595189,128.49,128.45,7.7851]
[1742233373508,20.7595189,128.47,128.43,7.7863]
[1742233373713,20.7595189,128.46,128.43,7.7863]
[1742233374013,20.7595189,128.47,128.43,7.7863]
[1742233374200,20.7595189,128.47,128.44,5.67844683]
[1742233374605,20.7595189,128.47,128.44,13.46384683]
[1742233375123,20.7595189,128.48,128.44,13.46384683]
[1742233375297,20.7595189,128.49,128.44,53.68766573]
[1742233376202,20.7595189,128.48,128.44,13.46384683]
[1742233376805,20.7595189,128.48,128.45,5.67844683]
[1742233377329,20.7595189,128.47,128.45,5.67844683]
[1742233377897,0.28432314,128.49,128.45,5.67844683]
[1742233377898,20.7595189,128.49,128.45,5.67844683]
[1742233378121,28.5195189,128.5,128.45,5.67844683]
[1742233378457,6.3584,128.53,128.46,20.7595189]
[1742233378608,7.72,128.53,128.48,7.7833]
[1742233378921,20.7595189,128.52,128.48,27.2415]
[1742233379321,7.72,128.53,128.49,20.7595189]
[1742233380397,0.063,128.55,128.5,47.9968189]
[1742233380609,20.8225189,128.55,128.5,47.9968189]
[1742233380813,20.8225189,128.55,128.51,20.7595189]
[1742233380814,0.063,128.55,128.51,20.7595189]
[1742233381307,0.063,128.55,128.52,20.7595189]
[1742233382408,0.063,128.55,128.53,7.7802]
[1742233383333,0.063,128.55,128.53,28.5397189]
[1742233383632,0.063,128.55,128.54,20.7595189]
[1742233384510,0.0001,128.55,128.54,28.5391189]
[1742233384716,0.0001,128.55,128.54,28.68128047]
[1742233385042,0.0001,128.55,128.54,40.46921173]
[1742233385929,0.0001,128.55,128.54,59.68750687]
[1742233386148,0.0001,128.55,128.54,61.24291535]
[1742233386433,0.0001,128.55,128.54,59.40318373]
[1742233388033,0.0001,128.55,128.54,61.24267439]
[1742233388426,0.0001,128.55,128.54,60.95835125]
[1742233391539,0.0001,128.55,128.54,35.77037925]
[1742233391831,0.0001,128.55,128.54,13.45569283]
[1742233392211,0.0001,128.55,128.54,34.3573733]
[1742233392914,0.0001,128.55,128.54,53.14918373]
[1742233393415,0.0001,128.55,128.54,365.14918373]
[1742233395235,0.0001,128.55,128.54,53.14918373]
[1742233395639,0.0001,128.55,128.54,13.45569283]
[1742233396026,0.0001,128.55,128.54,5.67609283]
[1742233396530,0.0001,128.55,128.53,7.7802]
[1742233397831,0.0001,128.55,128.52,7.7808]
[1742233399330,0.0001,128.55,128.52,47.9925189]
[1742233400719,0.0001,128.55,128.52,27.233]
[1742233400924,20.7596189,128.55,128.52,7.7808]
[1742233401134,0.0001,128.55,128.52,27.233]
[1742233402038,20.7596189,128.55,128.52,7.7808]
[1742233402746,0.0001,128.55,128.52,7.7808]
[1742233402928,0.0001,128.55,128.52,27.233]
[1742233403928,0.0001,128.55,128.53,20.7595189]
[1742233404120,0.0001,128.55,128.54,20.7595189]
[1742233404638,0.0001,128.55,128.54,20.90168047]
[1742233404846,0.0001,128.55,128.54,41.24864848]
[1742233405142,0.0001,128.55,128.54,39.6934909]
[1742233406048,0.0001,128.55,128.54,47.4730909]
[1742233406246,0.0001,128.55,128.54,53.14237986]
[1742233406539,0.0001,128.55,128.54,34.20840786]
[1742233406742,0.0001,128.55,128.54,34.35056943]
[1742233407619,0.0001,128.55,128.54,346.35056943]
[1742233407824,0.0001,128.55,128.54,365.14237986]
[1742233409560,0.0001,128.55,128.54,365.426703]
[1742233411055,0.0001,128.55,128.54,372.023903]
[1742233411248,0.0001,128.55,128.54,373.631403]
[1742233411758,2.8438639,128.61,128.57,20.14216157]
[1742233411924,2.8438639,128.61,128.59,20.7595189]
[1742233412127,2.8438639,128.61,128.58,20.7595189]
[1742233413064,2.8438639,128.61,128.59,7.7766]
[1742233414864,2.8438639,128.61,128.59,28.5361189]
[1742233416031,2.8438639,128.61,128.59,7.7766]
[1742233416340,23.6033828,128.61,128.58,7.7771]
[1742233417270,20.7595189,128.59,128.55,27.2265]
[1742233418132,20.7595189,128.59,128.55,47.9860189]
[1742233418541,20.7595189,128.59,128.55,27.2265]
[1742233418760,20.7595189,128.58,128.55,7.779]
[1742233419342,20.7595189,128.58,128.53,48.0530189]
[1742233419543,20.7595189,128.57,128.53,27.2935]
[1742233419850,20.7595189,128.57,128.53,7.8432]
[1742233419851,20.7595189,128.55,128.53,7.8432]
[1742233420865,20.7595189,128.56,128.53,0.063]
[1742233421074,28.1995189,128.57,128.53,0.063]
[1742233421765,28.1995189,128.57,128.53,26.51071843]
[1742233421766,7.44,128.57,128.53,26.51071843]
[1742233422270,28.1995189,128.57,128.53,5.75119953]
[1742233422853,28.1995189,128.57,128.54,7.7796]
[1742233423262,28.1995189,128.57,128.54,13.46779953]
[1742233423462,7.44,128.57,128.54,13.46779953]
[1742233423962,31.0233828,128.61,128.56,20.7595189]
[1742233425455,31.0233828,128.61,128.58,7.7772]
[1742233426250,10.2638639,128.61,128.58,27.2203]
[1742233426450,10.2638639,128.61,128.59,5.68819953]
[1742233426937,2.8438639,128.61,128.59,26.44771843]
[1742233427465,2.8438639,128.61,128.6,13.46419953]
[1742233428564,23.6033828,128.61,128.6,5.68819953]
[1742233429964,23.6033828,128.61,128.59,7.7763]
[1742233430271,2.8438639,128.61,128.59,7.7763]
[1742233431353,2.8438639,128.61,128.59,28.5358189]
[1742233431667,2.8438639,128.61,128.59,7.7763]
[1742233432055,23.6033828,128.61,128.59,7.7763]
[1742233432255,23.6033828,128.61,128.6,5.69731793]
[1742233433962,23.6033828,128.61,128.59,7.7763]
[1742233434350,2.8438639,128.61,128.59,7.7763]
[1742233436551,2.8438639,128.61,128.6,5.69547518]
[1742233438057,2.8438639,128.61,128.6,13.47147518]
[1742233441265,2.8438639,128.61,128.6,7.776]
[1742233442761,2.8438639,128.61,128.59,7.7766]
[1742233443496,2.8438639,128.61,128.6,5.69112593]
[1742233443859,23.6033828,128.61,128.6,5.69112593]
[1742233444063,23.88770594,128.61,128.6,5.69112593]
[1742233444473,31.66310594,128.61,128.6,5.69112593]
[1742233444783,52.39923003,128.61,128.6,5.69112593]
[1742233445095,0.28432314,128.59,128.58,5.75412593]
[1742233445267,28.36384204,128.59,128.58,5.75412593]
[1742233446588,7.60432314,128.59,128.58,0.063]
[1742233446908,28.36384204,128.59,128.58,0.063]
[1742233449271,47.15565247,128.59,128.58,0.063]
[1742233450124,28.36384204,128.59,128.58,0.063]
[1742233450399,7.32,128.59,128.58,0.063]
[1742233450586,50.8833828,128.61,128.58,0.063]
[1742233450767,30.8833828,128.61,128.58,0.063]
[1742233451370,10.1238639,128.61,128.58,20.8225189]
[1742233451768,2.8438639,128.61,128.58,20.8225189]
[1742233452463,2.8438639,128.61,128.59,5.69680463]
[1742233453280,23.6033828,128.61,128.59,13.47320463]
[1742233453482,20.7595189,128.6,128.59,5.69680463]
[1742233453687,20.7595189,128.6,128.58,0.063]
[1742233453903,20.7595189,128.59,128.58,7.8401]
[1742233454492,20.7595189,128.59,128.58,13.5358664]
[1742233455798,28.0395189,128.6,128.58,13.5358664]
[1742233456100,7.28,128.6,128.58,13.5358664]
[1742233456993,7.28,128.6,128.58,7.8401]
[1742233457784,7.28,128.6,128.59,5.69284246]
[1742233458703,28.32384204,128.6,128.59,5.69284246]
[1742233459682,54.89165247,128.6,128.59,5.69284246]
[1742233459883,0.28432314,128.59,128.58,0.063]
[1742233460087,21.04384204,128.59,128.58,0.063]
[1742233461015,41.78019883,128.59,128.58,0.063]
[1742233461306,41.9223604,128.59,128.58,0.063]
[1742233461488,49.6989604,128.59,128.58,0.063]
[1742233462296,39.83565247,128.59,128.58,0.063]
[1742233464615,47.61225247,128.59,128.58,0.063]
[1742233465208,47.75441404,128.59,128.58,0.063]
[1742233472896,47.75441404,128.59,128.54,5.70155744]
[1742233472897,20.42648471,128.55,128.54,5.70155744]
[1742233473226,69.06111351,128.55,128.53,0.063]
[1742233473400,21.04384204,128.54,128.53,0.063]
[1742233476325,46.07181043,128.55,128.53,0.063]
[1742233476326,48.0395189,128.55,128.53,0.063]
[1742233476999,20.7595189,128.54,128.53,0.063]
[1742233480732,27.28,128.55,128.53,0.063]
[1742233481122,48.0395189,128.55,128.53,0.063]
[1742233481333,48.0395189,128.56,128.53,0.063]
[1742233481818,20.7595189,128.55,128.53,0.063]
[1742233482340,20.7595189,128.54,128.53,0.063]
[1742233488217,41.78085771,128.54,128.53,0.063]
[1742233489720,49.56045771,128.54,128.53,0.063]
[1742233489922,41.78085771,128.54,128.53,0.063]
[1742233490630,49.70261928,128.54,128.53,0.063]
[1742233492535,41.78085771,128.54,128.53,0.063]
[1742233493528,39.83565247,128.54,128.53,0.063]
[1742233493721,21.04384204,128.54,128.53,0.063]
[1742233493931,20.7595189,128.55,128.53,0.063]
[1742233494537,7.28,128.54,128.53,0.063]
[1742233495540,28.0395189,128.54,128.53,0.063]
[1742233495931,7.28,128.54,128.53,0.063]
[1742233498826,20.7595189,128.55,128.53,0.063]
[1742233499039,28.0395189,128.55,128.53,0.063]
[1742233499742,41.92295827,128.54,128.53,0.063]
[1742233500820,39.83565247,128.54,128.53,0.063]
[1742233501022,18.79181043,128.56,128.53,0.063]
[1742233501219,20.0,128.54,128.53,0.063]
[1742233502056,20.7595189,128.57,128.53,0.063]
[1742233502242,7.28,128.57,128.53,20.8225189]
[1742233502545,20.0,128.55,128.54,7.7796]
[1742233502766,7.28,128.57,128.54,7.7796]
[1742233503239,28.0395189,128.57,128.54,7.7796]
[1742233503623,7.28,128.57,128.54,7.7796]
[1742233504327,28.0395189,128.57,128.53,9.4616]
[1742233505540,20.7595189,128.56,128.53,0.063]
[1742233505738,20.7595189,128.54,128.53,0.063]
[1742233507545,41.78092919,128.54,128.53,0.063]
[1742233507943,49.56052919,128.54,128.53,0.063]
[1742233508446,49.70269076,128.54,128.53,0.063]
[1742233508950,20.0,128.5,128.49,5.70591341]
[1742233509130,48.32384204,128.5,128.49,5.70591341]
[1742233509530,7.28,128.5,128.49,13.48861341]
[1742233510732,7.28,128.5,128.49,34.24813231]
[1742233511052,7.28,128.53,128.49,53.70483231]
[1742233512750,7.28,128.53,128.5,5.70591341]
[1742233512945,7.28,128.53,128.51,7.7814]
[1742233514041,7.28,128.53,128.52,5.70511785]
[1742233515331,7.28,128.53,128.52,13.48591785]
[1742233518347,7.28,128.53,128.52,5.70511785]
[1742233518961,28.0395189,128.53,128.52,5.70511785]
[1742233519163,7.28,128.53,128.52,13.48591785]
[1742233520546,20.7595189,128.56,128.52,13.48591785]
[1742233520749,7.28,128.56,128.52,13.48591785]
[1742233521041,7.28,128.56,128.52,32.93811785]
[1742233521442,20.0,128.54,128.53,5.70511785]
[1742233522264,20.0,128.54,128.53,13.48531785]
[1742233522757,20.7595189,128.54,128.53,5.70511785]
[1742233523068,41.04384204,128.54,128.53,5.70511785]
[1742233523248,20.0,128.54,128.53,13.48531785]
[1742233524143,20.0,128.54,128.53,7.7802]
[1742233524342,20.0,128.54,128.51,7.7814]
[1742233525184,20.0,128.54,128.52,5.69979685]
[1742233525744,40.7595189,128.54,128.52,5.69979685]
[1742233526366,21.04384204,128.53,128.52,5.69979685]
[1742233526860,21.04384204,128.53,128.52,5.76279685]
[1742233527068,0.28432314,128.53,128.52,5.76279685]
[1742233527362,39.83565247,128.53,128.52,5.76279685]
[1742233527568,47.61585247,128.53,128.52,5.76279685]
[1742233528063,47.75801404,128.53,128.52,5.76279685]
[1742233528379,47.75801404,128.53,128.52,0.063]
[1742233529445,39.83565247,128.53,128.52,0.063]
[1742233530269,39.97781404,128.53,128.52,0.063]
[1742233530963,47.75801404,128.53,128.52,0.063]
[1742233533049,39.55132933,128.48,128.47,0.03]
[1742233533254,48.77771757,128.48,128.47,0.03]
[1742233534145,49.20420228,128.48,128.47,0.03]
[1742233534970,56.98750228,128.48,128.47,0.03]
[1742233535558,49.20420228,128.48,128.47,0.03]
[1742233536681,56.98750228,128.48,128.47,0.03]
[1742233537350,49.20420228,128.48,128.47,0.03]
[1742233537784,28.44468338,128.48,128.47,0.03]
[1742233538169,49.20420228,128.48,128.47,0.03]
[1742233538649,7.42216157,128.48,128.47,0.03]
[1742233538857,7.56432314,128.48,128.47,0.03]
[1742233539258,28.32384204,128.48,128.47,0.03]
[1742233540458,7.56432314,128.48,128.47,0.03]
[1742233540659,27.28,128.48,128.47,0.03]
[1742233541481,20.0,128.48,128.47,0.03]
[1742233544255,20.28432314,128.48,128.47,0.03]
[1742233545052,20.0,128.48,128.47,0.03]
[1742233546360,41.04384204,128.48,128.47,0.03]
[1742233546577,59.83565247,128.48,128.47,0.03]
[1742233546749,59.97781404,128.48,128.47,0.03]
[1742233547369,67.76111404,128.48,128.47,0.03]
[1742233547564,59.83565247,128.48,128.47,0.03]
[1742233548077,1.94649486,128.5,128.47,0.03]
[1742233548272,29.98601376,128.5,128.47,0.03]
[1742233548577,20.0,128.48,128.47,0.03]
[1742233549381,0.28432314,128.48,128.47,0.03]
[1742233551565,20.0,128.48,128.47,0.03]
[1742233551981,0.063,128.52,128.48,7.6888]
[1742233552170,0.063,128.52,128.48,28.4483189]
[1742233553085,0.34732314,128.52,128.48,28.4483189]
[1742233553287,0.20516157,128.52,128.48,28.4483189]
[1742233553464,0.34732314,128.52,128.49,7.7827]
[1742233553984,0.34732314,128.52,128.49,47.9989189]
[1742233553985,0.063,128.52,128.49,47.9989189]
[1742233555869,0.063,128.52,128.49,27.2394]
[1742233556282,20.8225189,128.52,128.49,7.7827]
[1742233557068,28.1025189,128.52,128.49,7.7827]
[1742233557388,20.7595189,128.5,128.48,7.783]
[1742233557765,20.7595189,128.5,128.47,19.4897]
[1742233557987,22.98958482,128.51,128.47,19.4897]
[1742233558195,20.7595189,128.49,128.47,0.03]
[1742233558491,30.26998234,128.48,128.47,0.03]
[1742233559189,28.32384204,128.48,128.47,0.03]
[1742233560377,55.04111404,128.48,128.47,0.03]
[1742233560594,56.98787754,128.48,128.47,0.03]
[1742233561468,55.04111404,128.48,128.47,0.03]
[1742233562400,47.25781404,128.48,128.47,0.03]
[1742233562601,49.20454901,128.48,128.47,0.03]
[1742233563880,56.98784901,128.48,128.47,0.03]
[1742233566706,64.94874901,128.48,128.47,0.03]
[1742233567993,49.20454901,128.48,128.47,0.03]
[1742233568296,56.98784901,128.48,128.47,0.03]
[1742233568500,48.92022587,128.48,128.47,0.03]
[1742233568710,49.20454901,128.48,128.47,0.03]
[1742233568992,47.25781404,128.48,128.47,0.03]
[1742233569188,49.20437077,128.48,128.47,0.03]
[1742233569698,56.98767077,128.48,128.47,0.03]
[1742233570474,49.20437077,128.48,128.47,0.03]
[1742233570809,0.28432314,128.46,128.45,0.063]
[1742233571098,41.92481936,128.46,128.45,0.063]